[Event "Titled Tuesday Blitz May 2 Early 2023"]
[White "Bartel, Michal"]
[Black "Delorme, Alban"]
[WhiteFideId "1119257"]
[BlackFideId "623636"]
[WhiteElo "2282"]
[BlackElo "2196"]
[Result "1-0"]
[Round "07"]
[TimeControl "180+2"]
[Date "2023.05.03"]
[WhiteClock "0:00:00"]
[BlackClock "0:00:00"]

1. e4 {[%clk 0:00:01]}  c5 {[%clk 0:00:01]} 2. Ne2 {[%clk 0:00:01]}  d6 {[%clk 0:00:01]} 3. g3 {[%clk 0:00:01]}  g6 {[%clk 0:00:01]} 4. Bg2 {[%clk 0:00:01]}  Bg7 {[%clk 0:00:01]} 5. c3 {[%clk 0:00:01]}  Nf6 {[%clk 0:00:01]} 6. d4 {[%clk 0:00:01]}  O-O {[%clk 0:00:01]} 7. O-O {[%clk 0:00:01]}  Nc6 {[%clk 0:00:01]} 8. h3 {[%clk 0:00:01]}  e5 {[%clk 0:00:01]} 9. Be3 {[%clk 0:00:01]}  exd4 {[%clk 0:00:01]} 10. cxd4 {[%clk 0:00:01]}  cxd4 {[%clk 0:00:01]} 11. Nxd4 {[%clk 0:00:01]}  d5 {[%clk 0:00:01]} 12. Nxc6 {[%clk 0:00:01]}  bxc6 {[%clk 0:00:01]} 13. e5 {[%clk 0:00:01]}  Nd7 {[%clk 0:00:01]} 14. f4 {[%clk 0:00:01]}  Nb6 {[%clk 0:00:01]} 15. Bc5 {[%clk 0:00:01]}  Re8 {[%clk 0:00:01]} 16. Nd2 {[%clk 0:00:01]}  Be6 {[%clk 0:00:01]} 17. Rc1 {[%clk 0:00:01]}  Rc8 {[%clk 0:00:01]} 18. b3 {[%clk 0:00:01]}  f6 {[%clk 0:00:01]} 19. Nf3 {[%clk 0:00:01]}  Nd7 {[%clk 0:00:01]} 20. Bd6 {[%clk 0:00:01]}  fxe5 {[%clk 0:00:01]} 21. fxe5 {[%clk 0:00:01]}  Bf5 {[%clk 0:00:00]} 22. Rxc6 {[%clk 0:00:01]}  Be4 {[%clk 0:00:00]} 23. Rxc8 {[%clk 0:00:01]}  Qxc8 {[%clk 0:00:00]} 24. Qd4 {[%clk 0:00:01]}  Qc6 {[%clk 0:00:00]} 25. Qxa7 {[%clk 0:00:01]}  Ra8 {[%clk 0:00:00]} 26. Qf2 {[%clk 0:00:01]}  Qa6 {[%clk 0:00:00]} 27. Ng5 {[%clk 0:00:01]}  Bxg2 {[%clk 0:00:00]} 28. Qf7+ {[%clk 0:00:01]}  Kh8 {[%clk 0:00:00]} 29. Kxg2 {[%clk 0:00:01]}  Qc6 {[%clk 0:00:00]} 30. Rf2 {[%clk 0:00:01]}  d4+ {[%clk 0:00:00]} 31. Kh2 {[%clk 0:00:01]}  d3 {[%clk 0:00:00]} 32. e6 {[%clk 0:00:00]}  Nf6 {[%clk 0:00:00]} 33. Be7 {[%clk 0:00:00]}  Qb6 {[%clk 0:00:00]} 34. Kg2 {[%clk 0:00:00]}  Nh5 {[%clk 0:00:00]} 35. Qf3 {[%clk 0:00:00]}  Re8 {[%clk 0:00:00]} 36. Ba3 {[%clk 0:00:00]}  d2 {[%clk 0:00:00]} 37. Rxd2 {[%clk 0:00:00]}  h6 {[%clk 0:00:00]} 38. Nf7+ {[%clk 0:00:00]}  Kh7 {[%clk 0:00:00]} 39. g4 {[%clk 0:00:00]}  Qa5 {[%clk 0:00:00]} 40. Re2 {[%clk 0:00:00]}  Qxa3 {[%clk 0:00:00]} 41. gxh5 {[%clk 0:00:00]} 1-0


[Site "https://www.chess.com"]

[Event "Titled Tuesday Blitz May 2 Early 2023"]
[White "Molina, Roberto Junio Brito"]
[Black "Reefat, Bin-Sattar"]
[WhiteFideId "2109450"]
[BlackFideId "10200207"]
[WhiteElo "2376"]
[BlackElo "2462"]
[Result "1-0"]
[Round "07"]
[TimeControl "180+2"]
[Date "2023.05.03"]
[WhiteClock "0:00:00"]
[BlackClock "0:00:00"]

1. d4 {[%clk 0:00:01]}  e6 {[%clk 0:00:01]} 2. c4 {[%clk 0:00:01]}  b6 {[%clk 0:00:01]} 3. a3 {[%clk 0:00:01]}  g6 {[%clk 0:00:01]} 4. e4 {[%clk 0:00:01]}  Bg7 {[%clk 0:00:01]} 5. Nc3 {[%clk 0:00:01]}  Ne7 {[%clk 0:00:01]} 6. Be3 {[%clk 0:00:01]}  Bb7 {[%clk 0:00:01]} 7. Qd2 {[%clk 0:00:01]}  h6 {[%clk 0:00:01]} 8. f3 {[%clk 0:00:01]}  d5 {[%clk 0:00:01]} 9. cxd5 {[%clk 0:00:01]}  exd5 {[%clk 0:00:01]} 10. e5 {[%clk 0:00:01]}  Nd7 {[%clk 0:00:01]} 11. f4 {[%clk 0:00:01]}  a6 {[%clk 0:00:01]} 12. Nf3 {[%clk 0:00:01]}  c5 {[%clk 0:00:01]} 13. Bd3 {[%clk 0:00:01]}  Rc8 {[%clk 0:00:01]} 14. O-O {[%clk 0:00:01]}  Nf5 {[%clk 0:00:00]} 15. Bxf5 {[%clk 0:00:01]}  gxf5 {[%clk 0:00:00]} 16. Rad1 {[%clk 0:00:01]}  O-O {[%clk 0:00:00]} 17. dxc5 {[%clk 0:00:01]}  Nxc5 {[%clk 0:00:00]} 18. Nxd5 {[%clk 0:00:01]}  Ne4 {[%clk 0:00:00]} 19. Qd4 {[%clk 0:00:01]}  Rc2 {[%clk 0:00:00]} 20. Nxb6 {[%clk 0:00:00]}  Qxd4 {[%clk 0:00:00]} 21. Bxd4 {[%clk 0:00:00]}  h5 {[%clk 0:00:00]} 22. Rc1 {[%clk 0:00:00]}  Re2 {[%clk 0:00:00]} 23. Rfe1 {[%clk 0:00:00]}  Rxe1+ {[%clk 0:00:00]} 24. Rxe1 {[%clk 0:00:00]}  Bh6 {[%clk 0:00:00]} 25. Be3 {[%clk 0:00:00]}  Rd8 {[%clk 0:00:00]} 26. Nh4 {[%clk 0:00:00]} 1-0


[Site "https://www.chess.com"]

[Event "Titled Tuesday Blitz May 2 Early 2023"]
[White "Yeritsyan, Hayk"]
[Black "Preotu, Razvan"]
[WhiteFideId "13307320"]
[BlackFideId "2613280"]
[WhiteElo "2241"]
[BlackElo "2407"]
[Result "0-1"]
[Round "07"]
[TimeControl "180+2"]
[Date "2023.05.03"]
[WhiteClock "0:00:00"]
[BlackClock "0:00:00"]

1. d4 {[%clk 0:00:01]}  Nf6 {[%clk 0:00:01]} 2. Nc3 {[%clk 0:00:01]}  d5 {[%clk 0:00:01]} 3. Bf4 {[%clk 0:00:01]}  c5 {[%clk 0:00:01]} 4. e3 {[%clk 0:00:01]}  cxd4 {[%clk 0:00:01]} 5. exd4 {[%clk 0:00:01]}  a6 {[%clk 0:00:01]} 6. Nf3 {[%clk 0:00:01]}  Nc6 {[%clk 0:00:01]} 7. h3 {[%clk 0:00:01]}  Bf5 {[%clk 0:00:01]} 8. Bd3 {[%clk 0:00:01]}  Bxd3 {[%clk 0:00:01]} 9. Qxd3 {[%clk 0:00:01]}  e6 {[%clk 0:00:01]} 10. O-O {[%clk 0:00:01]}  Be7 {[%clk 0:00:01]} 11. Rfe1 {[%clk 0:00:01]}  O-O {[%clk 0:00:01]} 12. Re2 {[%clk 0:00:01]}  Rc8 {[%clk 0:00:01]} 13. Rae1 {[%clk 0:00:01]}  Qb6 {[%clk 0:00:01]} 14. Nd1 {[%clk 0:00:01]}  Nb4 {[%clk 0:00:00]} 15. Qb3 {[%clk 0:00:01]}  Qb5 {[%clk 0:00:00]} 16. Ne5 {[%clk 0:00:01]}  Nxc2 {[%clk 0:00:00]} 17. Rxc2 {[%clk 0:00:00]}  Qxb3 {[%clk 0:00:00]} 18. Rxc8 {[%clk 0:00:00]}  Qxa2 {[%clk 0:00:00]} 19. Rxf8+ {[%clk 0:00:00]}  Bxf8 {[%clk 0:00:00]} 20. f3 {[%clk 0:00:00]}  h6 {[%clk 0:00:00]} 21. Be3 {[%clk 0:00:00]}  a5 {[%clk 0:00:00]} 22. Nd3 {[%clk 0:00:00]}  Qb3 {[%clk 0:00:00]} 23. Nc5 {[%clk 0:00:00]}  Bxc5 {[%clk 0:00:00]} 24. dxc5 {[%clk 0:00:00]}  e5 {[%clk 0:00:00]} 25. Bf2 {[%clk 0:00:00]}  d4 {[%clk 0:00:00]} 26. Bg3 {[%clk 0:00:00]}  d3 {[%clk 0:00:00]} 27. Bxe5 {[%clk 0:00:00]}  d2 {[%clk 0:00:00]} 28. Rf1 {[%clk 0:00:00]}  Nd5 {[%clk 0:00:00]} 29. Kf2 {[%clk 0:00:00]}  Qc4 {[%clk 0:00:00]} 30. Bd6 {[%clk 0:00:00]}  Nb4 {[%clk 0:00:00]} 31. Ne3 {[%clk 0:00:00]}  Nd3+ {[%clk 0:00:00]} 32. Ke2 {[%clk 0:00:00]}  Nf4+ {[%clk 0:00:00]} 33. Kxd2 {[%clk 0:00:00]}  Qd3+ {[%clk 0:00:00]} 34. Kc1 {[%clk 0:00:00]}  Ne2# {[%clk 0:00:00]} 0-1


[Site "https://www.chess.com"]

[Event "Titled Tuesday Blitz May 2 Early 2023"]
[White "Lavrik, Dmitry"]
[Black "Karwowski, Kacper"]
[WhiteFideId "24113190"]
[BlackFideId "1126032"]
[WhiteElo "2345"]
[BlackElo "2261"]
[Result "1-0"]
[Round "07"]
[TimeControl "180+2"]
[Date "2023.05.03"]
[WhiteClock "0:00:00"]
[BlackClock "0:00:00"]

1. c4 {[%clk 0:00:01]}  e6 {[%clk 0:00:01]} 2. g3 {[%clk 0:00:01]}  d5 {[%clk 0:00:01]} 3. Bg2 {[%clk 0:00:01]}  Nf6 {[%clk 0:00:01]} 4. Nf3 {[%clk 0:00:01]}  Be7 {[%clk 0:00:01]} 5. O-O {[%clk 0:00:01]}  dxc4 {[%clk 0:00:01]} 6. Qa4+ {[%clk 0:00:01]}  Bd7 {[%clk 0:00:01]} 7. Qxc4 {[%clk 0:00:01]}  c5 {[%clk 0:00:01]} 8. Ne5 {[%clk 0:00:01]}  Qc8 {[%clk 0:00:01]} 9. Nc3 {[%clk 0:00:01]}  Nc6 {[%clk 0:00:01]} 10. Nxd7 {[%clk 0:00:01]}  Qxd7 {[%clk 0:00:01]} 11. d3 {[%clk 0:00:01]}  O-O {[%clk 0:00:01]} 12. Be3 {[%clk 0:00:01]}  Rac8 {[%clk 0:00:01]} 13. Qa4 {[%clk 0:00:01]}  Rfd8 {[%clk 0:00:01]} 14. Rfc1 {[%clk 0:00:01]}  a6 {[%clk 0:00:01]} 15. a3 {[%clk 0:00:01]}  Nd4 {[%clk 0:00:01]} 16. Kf1 {[%clk 0:00:01]}  b5 {[%clk 0:00:00]} 17. Qxa6 {[%clk 0:00:01]}  Nb3 {[%clk 0:00:00]} 18. Qxb5 {[%clk 0:00:01]}  Nxc1 {[%clk 0:00:00]} 19. Rxc1 {[%clk 0:00:01]}  Rb8 {[%clk 0:00:00]} 20. Qxd7 {[%clk 0:00:01]}  Rxd7 {[%clk 0:00:00]} 21. Na4 {[%clk 0:00:01]}  Nd5 {[%clk 0:00:00]} 22. Bxc5 {[%clk 0:00:01]}  Bg5 {[%clk 0:00:00]} 23. f4 {[%clk 0:00:01]}  Bf6 {[%clk 0:00:00]} 24. b4 {[%clk 0:00:01]}  Ra8 {[%clk 0:00:00]} 25. Bxd5 {[%clk 0:00:01]}  Rxd5 {[%clk 0:00:00]} 26. Nb6 {[%clk 0:00:01]}  Rxa3 {[%clk 0:00:00]} 27. Nxd5 {[%clk 0:00:00]}  exd5 {[%clk 0:00:00]} 28. Bd4 {[%clk 0:00:00]}  Ra8 {[%clk 0:00:00]} 29. Bxf6 {[%clk 0:00:00]}  gxf6 {[%clk 0:00:00]} 30. Kf2 {[%clk 0:00:00]}  Rb8 {[%clk 0:00:00]} 31. Rb1 {[%clk 0:00:00]}  Kf8 {[%clk 0:00:00]} 32. Ke3 {[%clk 0:00:00]}  Ke7 {[%clk 0:00:00]} 33. Kd4 {[%clk 0:00:00]}  Kd6 {[%clk 0:00:00]} 34. b5 {[%clk 0:00:00]}  Rb6 {[%clk 0:00:00]} 35. f5 {[%clk 0:00:00]}  h6 {[%clk 0:00:00]} 36. Rb2 {[%clk 0:00:00]}  Rb8 {[%clk 0:00:00]} 37. b6 {[%clk 0:00:00]}  Rb7 {[%clk 0:00:00]} 38. Rb3 {[%clk 0:00:00]}  Kc6 {[%clk 0:00:00]} 39. g4 {[%clk 0:00:00]}  Kd6 {[%clk 0:00:00]} 40. e4 {[%clk 0:00:00]}  dxe4 {[%clk 0:00:00]} 41. dxe4 {[%clk 0:00:00]}  Kc6 {[%clk 0:00:00]} 42. Ke3 {[%clk 0:00:00]}  Kc5 {[%clk 0:00:00]} 43. Kf4 {[%clk 0:00:00]}  Kc4 {[%clk 0:00:00]} 44. Rb1 {[%clk 0:00:00]}  Kd4 {[%clk 0:00:00]} 45. h3 {[%clk 0:00:00]}  Kd3 {[%clk 0:00:00]} 46. e5 {[%clk 0:00:00]}  fxe5+ {[%clk 0:00:00]} 47. Kxe5 {[%clk 0:00:00]}  Ke3 {[%clk 0:00:00]} 48. Rb3+ {[%clk 0:00:00]}  Kf2 {[%clk 0:00:00]} 49. Kf4 {[%clk 0:00:00]}  Kg2 {[%clk 0:00:00]} 50. h4 {[%clk 0:00:00]} 1-0


[Site "https://www.chess.com"]

[Event "Titled Tuesday Blitz May 2 Early 2023"]
[White "Baches Garcia, Guillermo"]
[Black "Borgaonkar Akshay"]
[WhiteFideId "2209764"]
[BlackFideId "25639110"]
[WhiteElo "2334"]
[BlackElo "2063"]
[Result "0-1"]
[Round "07"]
[TimeControl "180+2"]
[Date "2023.05.03"]
[WhiteClock "0:00:00"]
[BlackClock "0:00:00"]

1. e4 {[%clk 0:00:01]}  c5 {[%clk 0:00:01]} 2. Nf3 {[%clk 0:00:01]}  e6 {[%clk 0:00:01]} 3. d4 {[%clk 0:00:01]}  cxd4 {[%clk 0:00:01]} 4. Nxd4 {[%clk 0:00:01]}  a6 {[%clk 0:00:01]} 5. c4 {[%clk 0:00:01]}  Qc7 {[%clk 0:00:01]} 6. Nc3 {[%clk 0:00:01]}  Nc6 {[%clk 0:00:01]} 7. Be3 {[%clk 0:00:01]}  Nf6 {[%clk 0:00:01]} 8. a3 {[%clk 0:00:01]}  b6 {[%clk 0:00:01]} 9. Be2 {[%clk 0:00:01]}  Bb7 {[%clk 0:00:01]} 10. O-O {[%clk 0:00:01]}  h5 {[%clk 0:00:01]} 11. f3 {[%clk 0:00:01]}  Bd6 {[%clk 0:00:01]} 12. h3 {[%clk 0:00:01]}  h4 {[%clk 0:00:01]} 13. f4 {[%clk 0:00:01]}  Nxd4 {[%clk 0:00:01]} 14. Qxd4 {[%clk 0:00:01]}  Bc5 {[%clk 0:00:01]} 15. Qd3 {[%clk 0:00:01]}  Rd8 {[%clk 0:00:01]} 16. b4 {[%clk 0:00:00]}  Bxe3+ {[%clk 0:00:01]} 17. Qxe3 {[%clk 0:00:00]}  d6 {[%clk 0:00:01]} 18. Rad1 {[%clk 0:00:00]}  O-O {[%clk 0:00:01]} 19. Rd2 {[%clk 0:00:00]}  Rc8 {[%clk 0:00:01]} 20. e5 {[%clk 0:00:00]}  dxe5 {[%clk 0:00:01]} 21. Qxe5 {[%clk 0:00:00]}  Qc6 {[%clk 0:00:00]} 22. Bf3 {[%clk 0:00:00]}  Qxc4 {[%clk 0:00:00]} 23. Bxb7 {[%clk 0:00:00]}  Qxc3 {[%clk 0:00:00]} 24. Bxc8 {[%clk 0:00:00]}  Qxd2 {[%clk 0:00:00]} 25. Bxa6 {[%clk 0:00:00]}  Rd8 {[%clk 0:00:00]} 26. Bb7 {[%clk 0:00:00]}  Rd3 {[%clk 0:00:00]} 27. f5 {[%clk 0:00:00]}  exf5 {[%clk 0:00:00]} 28. Qxf5 {[%clk 0:00:00]}  Rg3 {[%clk 0:00:00]} 29. Kh1 {[%clk 0:00:00]}  Qd3 {[%clk 0:00:00]} 30. Qxd3 {[%clk 0:00:00]}  Rxd3 {[%clk 0:00:00]} 31. Ra1 {[%clk 0:00:00]}  Nh5 {[%clk 0:00:00]} 32. a4 {[%clk 0:00:00]}  Ng3+ {[%clk 0:00:00]} 33. Kg1 {[%clk 0:00:00]}  Rb3 {[%clk 0:00:00]} 34. a5 {[%clk 0:00:00]}  bxa5 {[%clk 0:00:00]} 35. Rxa5 {[%clk 0:00:00]}  Rxb4 {[%clk 0:00:00]} 36. Bc6 {[%clk 0:00:00]}  Rb2 {[%clk 0:00:00]} 37. Rb5 {[%clk 0:00:00]}  Rc2 {[%clk 0:00:00]} 38. Be4 {[%clk 0:00:00]}  Nxe4 {[%clk 0:00:00]} 0-1


[Site "https://www.chess.com"]

[Event "Titled Tuesday Blitz May 2 Early 2023"]
[White "Girish, A. Koushik"]
[Black "Eggink, Ryszard"]
[WhiteFideId "5038448"]
[BlackFideId "1125869"]
[WhiteElo "2398"]
[BlackElo "2283"]
[Result "1-0"]
[Round "07"]
[TimeControl "180+2"]
[Date "2023.05.03"]
[WhiteClock "0:00:00"]
[BlackClock "0:00:00"]

1. d4 {[%clk 0:00:01]}  Nf6 {[%clk 0:00:01]} 2. c4 {[%clk 0:00:01]}  e6 {[%clk 0:00:01]} 3. Nf3 {[%clk 0:00:01]}  Bb4+ {[%clk 0:00:01]} 4. Bd2 {[%clk 0:00:01]}  a5 {[%clk 0:00:01]} 5. g3 {[%clk 0:00:01]}  b6 {[%clk 0:00:01]} 6. Bg2 {[%clk 0:00:01]}  Bb7 {[%clk 0:00:01]} 7. O-O {[%clk 0:00:01]}  O-O {[%clk 0:00:01]} 8. Nc3 {[%clk 0:00:01]}  d6 {[%clk 0:00:01]} 9. Qc2 {[%clk 0:00:01]}  Nbd7 {[%clk 0:00:01]} 10. Rfe1 {[%clk 0:00:01]}  Bxc3 {[%clk 0:00:01]} 11. Bxc3 {[%clk 0:00:01]}  Be4 {[%clk 0:00:01]} 12. Qd2 {[%clk 0:00:01]}  d5 {[%clk 0:00:01]} 13. b3 {[%clk 0:00:01]}  a4 {[%clk 0:00:01]} 14. Bh3 {[%clk 0:00:01]}  axb3 {[%clk 0:00:01]} 15. axb3 {[%clk 0:00:01]}  Bxf3 {[%clk 0:00:01]} 16. exf3 {[%clk 0:00:01]}  c6 {[%clk 0:00:01]} 17. Bf1 {[%clk 0:00:01]}  Qc7 {[%clk 0:00:01]} 18. Kg2 {[%clk 0:00:01]}  h6 {[%clk 0:00:01]} 19. Bd3 {[%clk 0:00:01]}  Qb7 {[%clk 0:00:01]} 20. h4 {[%clk 0:00:01]}  Rxa1 {[%clk 0:00:01]} 21. Rxa1 {[%clk 0:00:01]}  Ra8 {[%clk 0:00:01]} 22. Qc1 {[%clk 0:00:01]}  Rxa1 {[%clk 0:00:01]} 23. Qxa1 {[%clk 0:00:01]}  Ne8 {[%clk 0:00:01]} 24. Qa3 {[%clk 0:00:01]}  c5 {[%clk 0:00:01]} 25. cxd5 {[%clk 0:00:01]}  exd5 {[%clk 0:00:01]} 26. Bb5 {[%clk 0:00:00]}  Nd6 {[%clk 0:00:00]} 27. Bxd7 {[%clk 0:00:00]}  Qxd7 {[%clk 0:00:00]} 28. dxc5 {[%clk 0:00:00]}  bxc5 {[%clk 0:00:00]} 29. Qxc5 {[%clk 0:00:00]}  Nb5 {[%clk 0:00:00]} 30. Bd4 {[%clk 0:00:00]}  Nxd4 {[%clk 0:00:00]} 31. Qxd4 {[%clk 0:00:00]}  Qb5 {[%clk 0:00:00]} 32. b4 {[%clk 0:00:00]}  h5 {[%clk 0:00:00]} 33. g4 {[%clk 0:00:00]}  g6 {[%clk 0:00:00]} 34. Kg3 {[%clk 0:00:00]}  Kf8 {[%clk 0:00:00]} 35. Qc5+ {[%clk 0:00:00]}  Qxc5 {[%clk 0:00:00]} 36. bxc5 {[%clk 0:00:00]}  Ke7 {[%clk 0:00:00]} 37. Kf4 {[%clk 0:00:00]}  Kd7 {[%clk 0:00:00]} 38. Ke5 {[%clk 0:00:00]}  Kc6 {[%clk 0:00:00]} 39. Kd4 {[%clk 0:00:00]}  f6 {[%clk 0:00:00]} 40. gxh5 {[%clk 0:00:00]}  gxh5 {[%clk 0:00:00]} 41. f4 {[%clk 0:00:00]}  f5 {[%clk 0:00:00]} 42. f3 {[%clk 0:00:00]} 1-0


[Site "https://www.chess.com"]

[Event "Titled Tuesday Blitz May 2 Early 2023"]
[White "Bochnicka, Vladimir"]
[Black "Iskusnyh, Sergei"]
[WhiteFideId "14943450"]
[BlackFideId "4120027"]
[WhiteElo "2094"]
[BlackElo "2492"]
[Result "0-1"]
[Round "07"]
[TimeControl "180+2"]
[Date "2023.05.03"]
[WhiteClock "0:00:00"]
[BlackClock "0:00:00"]

1. e4 {[%clk 0:00:01]}  e6 {[%clk 0:00:01]} 2. d4 {[%clk 0:00:01]}  d5 {[%clk 0:00:01]} 3. Nd2 {[%clk 0:00:01]}  c5 {[%clk 0:00:01]} 4. exd5 {[%clk 0:00:01]}  Qxd5 {[%clk 0:00:01]} 5. Ngf3 {[%clk 0:00:01]}  cxd4 {[%clk 0:00:01]} 6. Bc4 {[%clk 0:00:01]}  Qd7 {[%clk 0:00:01]} 7. O-O {[%clk 0:00:01]}  Nc6 {[%clk 0:00:01]} 8. Re1 {[%clk 0:00:01]}  Nf6 {[%clk 0:00:01]} 9. Nb3 {[%clk 0:00:01]}  Bb4 {[%clk 0:00:01]} 10. Bd2 {[%clk 0:00:01]}  Bxd2 {[%clk 0:00:01]} 11. Qxd2 {[%clk 0:00:01]}  O-O {[%clk 0:00:01]} 12. Nbxd4 {[%clk 0:00:01]}  Nxd4 {[%clk 0:00:01]} 13. Nxd4 {[%clk 0:00:01]}  Qc7 {[%clk 0:00:01]} 14. Bb3 {[%clk 0:00:01]}  Bd7 {[%clk 0:00:01]} 15. c3 {[%clk 0:00:01]}  Rad8 {[%clk 0:00:01]} 16. Qe2 {[%clk 0:00:01]}  Bc8 {[%clk 0:00:01]} 17. h3 {[%clk 0:00:01]}  Rfe8 {[%clk 0:00:01]} 18. Rad1 {[%clk 0:00:01]}  Qc5 {[%clk 0:00:01]} 19. Qb5 {[%clk 0:00:00]}  Qc7 {[%clk 0:00:00]} 20. Qc4 {[%clk 0:00:00]}  Qxc4 {[%clk 0:00:00]} 21. Bxc4 {[%clk 0:00:00]}  a6 {[%clk 0:00:00]} 22. Nb3 {[%clk 0:00:00]}  Kf8 {[%clk 0:00:00]} 23. Be2 {[%clk 0:00:00]}  b6 {[%clk 0:00:00]} 24. Bf3 {[%clk 0:00:00]}  a5 {[%clk 0:00:00]} 25. Nd4 {[%clk 0:00:00]}  Bd7 {[%clk 0:00:00]} 26. Nc6 {[%clk 0:00:00]}  Bxc6 {[%clk 0:00:00]} 27. Bxc6 {[%clk 0:00:00]}  Rxd1 {[%clk 0:00:00]} 28. Rxd1 {[%clk 0:00:00]}  Rc8 {[%clk 0:00:00]} 29. Bf3 {[%clk 0:00:00]}  Ke7 {[%clk 0:00:00]} 30. Kf1 {[%clk 0:00:00]}  Nd7 {[%clk 0:00:00]} 31. Ke2 {[%clk 0:00:00]}  Nc5 {[%clk 0:00:00]} 32. Rd4 {[%clk 0:00:00]}  f5 {[%clk 0:00:00]} 33. g3 {[%clk 0:00:00]}  Rc7 {[%clk 0:00:00]} 34. Kd2 {[%clk 0:00:00]}  Nd7 {[%clk 0:00:00]} 35. Ke3 {[%clk 0:00:00]}  Ne5 {[%clk 0:00:00]} 36. Be2 {[%clk 0:00:00]}  g5 {[%clk 0:00:00]} 37. f4 {[%clk 0:00:00]}  gxf4+ {[%clk 0:00:00]} 38. gxf4 {[%clk 0:00:00]}  Nd7 {[%clk 0:00:00]} 39. Rd1 {[%clk 0:00:00]}  Nc5 {[%clk 0:00:00]} 40. Rg1 {[%clk 0:00:00]}  Kf6 {[%clk 0:00:00]} 41. Rg8 {[%clk 0:00:00]}  Na4 {[%clk 0:00:00]} 42. Rb8 {[%clk 0:00:00]}  Nxb2 {[%clk 0:00:00]} 43. Rxb6 {[%clk 0:00:00]}  Nc4+ {[%clk 0:00:00]} 44. Bxc4 {[%clk 0:00:00]}  Rxc4 {[%clk 0:00:00]} 45. Rb3 {[%clk 0:00:00]}  Re4+ {[%clk 0:00:00]} 46. Kf3 {[%clk 0:00:00]}  Ra4 {[%clk 0:00:00]} 47. a3 {[%clk 0:00:00]}  Rc4 {[%clk 0:00:00]} 48. Ke3 {[%clk 0:00:00]}  a4 {[%clk 0:00:00]} 49. Rb4 {[%clk 0:00:00]}  Rxc3+ {[%clk 0:00:00]} 0-1


[Site "https://www.chess.com"]

[Event "Titled Tuesday Blitz May 2 Early 2023"]
[White "Arpita, Mukherjee"]
[Black "Janaszak, Dawid"]
[WhiteFideId "5056403"]
[BlackFideId "1119206"]
[WhiteElo "2129"]
[BlackElo "2220"]
[Result "1/2-1/2"]
[Round "07"]
[TimeControl "180+2"]
[Date "2023.05.03"]
[WhiteClock "0:00:00"]
[BlackClock "0:00:00"]

1. e4 {[%clk 0:00:01]}  c5 {[%clk 0:00:01]} 2. Nf3 {[%clk 0:00:01]}  Nc6 {[%clk 0:00:01]} 3. Bb5 {[%clk 0:00:01]}  d5 {[%clk 0:00:01]} 4. exd5 {[%clk 0:00:01]}  Qxd5 {[%clk 0:00:01]} 5. Nc3 {[%clk 0:00:01]}  Qh5 {[%clk 0:00:01]} 6. Be2 {[%clk 0:00:01]}  Nf6 {[%clk 0:00:01]} 7. O-O {[%clk 0:00:01]}  e6 {[%clk 0:00:01]} 8. d4 {[%clk 0:00:01]}  cxd4 {[%clk 0:00:01]} 9. Nxd4 {[%clk 0:00:01]}  Qa5 {[%clk 0:00:01]} 10. Nxc6 {[%clk 0:00:01]}  bxc6 {[%clk 0:00:01]} 11. Bf3 {[%clk 0:00:01]}  Bd7 {[%clk 0:00:01]} 12. Ne4 {[%clk 0:00:01]}  Nxe4 {[%clk 0:00:01]} 13. Bxe4 {[%clk 0:00:01]}  Qc7 {[%clk 0:00:01]} 14. Re1 {[%clk 0:00:01]}  Bd6 {[%clk 0:00:01]} 15. Qh5 {[%clk 0:00:01]}  g6 {[%clk 0:00:01]} 16. Qh4 {[%clk 0:00:01]}  Qd8 {[%clk 0:00:01]} 17. Bg5 {[%clk 0:00:01]}  Be7 {[%clk 0:00:01]} 18. Bxe7 {[%clk 0:00:01]}  Qxe7 {[%clk 0:00:01]} 19. Qh6 {[%clk 0:00:01]}  Rb8 {[%clk 0:00:00]} 20. b3 {[%clk 0:00:01]}  Rb5 {[%clk 0:00:00]} 21. Bf3 {[%clk 0:00:01]}  Qf8 {[%clk 0:00:00]} 22. Qe3 {[%clk 0:00:01]}  Qc5 {[%clk 0:00:00]} 23. Qh6 {[%clk 0:00:00]}  Qf8 {[%clk 0:00:00]} 24. Qd2 {[%clk 0:00:00]}  Qb4 {[%clk 0:00:00]} 25. c3 {[%clk 0:00:00]}  Qe7 {[%clk 0:00:00]} 26. Rad1 {[%clk 0:00:00]}  Rb7 {[%clk 0:00:00]} 27. Qh6 {[%clk 0:00:00]}  Qf8 {[%clk 0:00:00]} 28. Qf4 {[%clk 0:00:00]}  Qc5 {[%clk 0:00:00]} 29. Qf6 {[%clk 0:00:00]}  Rf8 {[%clk 0:00:00]} 30. c4 {[%clk 0:00:00]}  Qe7 {[%clk 0:00:00]} 31. Qd4 {[%clk 0:00:00]}  f6 {[%clk 0:00:00]} 32. Qd6 {[%clk 0:00:00]}  Qxd6 {[%clk 0:00:00]} 33. Rxd6 {[%clk 0:00:00]}  Ke7 {[%clk 0:00:00]} 34. Bxc6 {[%clk 0:00:00]}  Kxd6 {[%clk 0:00:00]} 35. Bxb7 {[%clk 0:00:00]}  a5 {[%clk 0:00:00]} 36. Rd1+ {[%clk 0:00:00]}  Kc7 {[%clk 0:00:00]} 37. Bf3 {[%clk 0:00:00]}  e5 {[%clk 0:00:00]} 38. Rd5 {[%clk 0:00:00]}  a4 {[%clk 0:00:00]} 39. b4 {[%clk 0:00:00]}  Rb8 {[%clk 0:00:00]} 40. a3 {[%clk 0:00:00]}  Be6 {[%clk 0:00:00]} 41. Rc5+ {[%clk 0:00:00]}  Kd6 {[%clk 0:00:00]} 42. Rc6+ {[%clk 0:00:00]}  Ke7 {[%clk 0:00:00]} 43. b5 {[%clk 0:00:00]}  f5 {[%clk 0:00:00]} 44. Be2 {[%clk 0:00:00]}  Rd8 {[%clk 0:00:00]} 45. f3 {[%clk 0:00:00]}  Rd2 {[%clk 0:00:00]} 46. Kf1 {[%clk 0:00:00]}  Rb2 {[%clk 0:00:00]} 47. Ra6 {[%clk 0:00:00]}  e4 {[%clk 0:00:00]} 48. fxe4 {[%clk 0:00:00]}  fxe4 {[%clk 0:00:00]} 49. Ra7+ {[%clk 0:00:00]}  Kf6 {[%clk 0:00:00]} 50. Rxa4 {[%clk 0:00:00]}  e3 {[%clk 0:00:00]} 51. Rb4 {[%clk 0:00:00]}  Ra2 {[%clk 0:00:00]} 52. Rb1 {[%clk 0:00:00]}  Bf5 {[%clk 0:00:00]} 53. Rc1 {[%clk 0:00:00]}  Rxa3 {[%clk 0:00:00]} 54. c5 {[%clk 0:00:00]}  Rb3 {[%clk 0:00:00]} 55. b6 {[%clk 0:00:00]}  Bc8 {[%clk 0:00:00]} 56. g3 {[%clk 0:00:00]}  Bh3+ {[%clk 0:00:00]} 57. Kg1 {[%clk 0:00:00]}  Rb2 {[%clk 0:00:00]} 58. Bf1 {[%clk 0:00:00]}  Bg4 {[%clk 0:00:00]} 59. c6 {[%clk 0:00:00]}  e2 {[%clk 0:00:00]} 60. Bxe2 {[%clk 0:00:00]}  Rxe2 {[%clk 0:00:00]} 61. b7 {[%clk 0:00:00]}  Rb2 {[%clk 0:00:00]} 62. Rf1+ {[%clk 0:00:00]}  Kg5 {[%clk 0:00:00]} 63. Rc1 {[%clk 0:00:00]}  Bf3 {[%clk 0:00:00]} 64. Rc4 {[%clk 0:00:00]}  Rb1+ {[%clk 0:00:00]} 65. Kf2 {[%clk 0:00:00]}  Bxc6 {[%clk 0:00:00]} 66. Rxc6 {[%clk 0:00:00]}  Rxb7 {[%clk 0:00:00]} 67. Rc5+ {[%clk 0:00:00]}  Kh6 {[%clk 0:00:00]} 68. Kg2 {[%clk 0:00:00]}  Rb2+ {[%clk 0:00:00]} 69. Kh3 {[%clk 0:00:00]}  Rb4 {[%clk 0:00:00]} 70. g4 {[%clk 0:00:00]}  Rb3+ {[%clk 0:00:00]} 71. Kh4 {[%clk 0:00:00]}  Rb4 {[%clk 0:00:00]} 72. h3 {[%clk 0:00:00]}  Rb7 {[%clk 0:00:00]} 73. g5+ {[%clk 0:00:00]}  Kg7 {[%clk 0:00:00]} 74. Kg4 {[%clk 0:00:00]}  Re7 {[%clk 0:00:00]} 75. Rc4 {[%clk 0:00:00]}  Rd7 {[%clk 0:00:00]} 76. h4 {[%clk 0:00:00]}  h5+ {[%clk 0:00:00]} 77. gxh6+ {[%clk 0:00:00]}  Kxh6 {[%clk 0:00:00]} 78. Ra4 {[%clk 0:00:00]}  Rd6 {[%clk 0:00:00]} 79. Rb4 {[%clk 0:00:00]}  Rc6 {[%clk 0:00:00]} 80. Ra4 {[%clk 0:00:00]}  Rb6 {[%clk 0:00:00]} 81. Rc4 {[%clk 0:00:00]}  Rd6 {[%clk 0:00:00]} 82. Ra4 {[%clk 0:00:00]}  Rd1 {[%clk 0:00:00]} 83. Rc4 {[%clk 0:00:00]}  Rg1+ {[%clk 0:00:00]} 84. Kh3 {[%clk 0:00:00]}  Rf1 {[%clk 0:00:00]} 85. Rc5 {[%clk 0:00:00]}  Rh1+ {[%clk 0:00:00]} 86. Kg4 {[%clk 0:00:00]}  Rg1+ {[%clk 0:00:00]} 87. Kh3 {[%clk 0:00:00]}  Rh1+ {[%clk 0:00:00]} 88. Kg4 {[%clk 0:00:00]}  Rg1+ {[%clk 0:00:00]} 89. Kh3 {[%clk 0:00:00]}  Rh1+ {[%clk 0:00:00]} 1/2-1/2


[Site "https://www.chess.com"]